Cogmind - Beta 16 @@@ ROGUE MODE // 2025.11.10 @ 19:44:11 Player: Bikerider58 Result: Destroyed by B-99 Colossus with Linear Accelerator Performance ------------- Evolutions (9) 4500 Regions Visited (26) 5200 Robots Destroyed (394) 1970 Value Destroyed (20671) 20671 Prototype IDs (62) 1240 Alien Tech Used (4) 800 Bonus (15799) 15799 TOTAL SCORE: 50180 Bonus ------- High Alert Combat Kills 4657 Follower Combat Kills 1170 Network Hubs Disabled 400 Met Zhirov 300 Met R17 at Cetus 500 Found Hidden Lab 3000 Met R17 at Research 2000 Scanned by Researcher 500 Acquired SGEMP 2000 Delivered SGEMP 2000 Friendly Fire -728 Cogmind --------- Core Integrity 0/1600 Matter 287/300 Energy 100/100 System Corruption 19% Temperature Cool (0) Movement Walking (110) Location -1/Command Parts ------- > --- POWER (4) -------- (None) > --- PROPULSION (6) --- Biometal Leg > --- UTILITY (12) ----- Advanced Coolant Injector Advanced Targeting Computer Experimental Targeting Computer > --- WEAPON (4) ------- (None) > --- INVENTORY (5) ---- (None) Peak State ------------ > --- POWER ------------ Quantum Reactor Quantum Reactor Light Quantum Reactor Reinforced Quantum Reactor > --- PROPULSION ------- Myomer Leg Centrium Leg Centrium Leg Centrium Leg High-density Centrium Leg High-density Centrium Leg > --- UTILITY ---------- Advanced Heat Sink Advanced Cooling System Advanced Coolant Injector Large Storage Unit Advanced Targeting Computer Advanced Targeting Computer Experimental Targeting Computer Advanced Target Analyzer SHELL Armor Drone Bay > --- WEAPON ----------- Improved Potential Cannon Perforator > --- INVENTORY -------- Quantum Reactor Centrium Leg Advanced Heat Sink Advanced Heat Sink Experimental Energy Well Experimental Energy Well Energy Filter Centrium Heavy Armor Plating Advanced Point Defense System Transdimensional Reconstructor Gamma Bomb Array [Rating: 224] Favorites ----------- Power Antimatter Reactor Engine Light Ion Engine Power Core Reinforced Fission Core Reactor Antimatter Reactor Propulsion Improved Thunder Leg Treads Light Treads Leg Improved Thunder Leg Wheel Armored Wheel Hover Unit Aerolev Unit Flight Unit Improved VTOL Module Utility Large Storage Unit Device Seismic Detector Storage Large Storage Unit Processor Advanced Signal Interpreter Hackware Hacking Suite Protection Centrium Heavy Armor Plating Weapon Advanced KE Penetrator Energy Gun Precision Beam Rifle Energy Cannon Heavy Phase Cannon Ballistic Gun Advanced KE Penetrator Ballistic Cannon Perforator Launcher Gamma Bomb Array Impact Weapon Great Maul Slashing Weapon Power Sword Piercing Weapon Lance Build | -11 -10 -10 -10 -9 -8 -7 -7 -7 -6 -5 -5 -5 -5 -4 -4 -4 -4 -4 -4 -3 -3 -3 -2 -2 -1 -1 ------- Run | Yrd Mat Min Exi Min Mat Fac Was Fac Fac Fac Upp Upp Zhi Pro Fac Ext Cet Arc Hub Res Arm Lab Res Tes Acc Com Slots Evolved 18 | . . . . . 4 2 . . 2 2 . . . . 2 . . . . 2 . . 2 . 2 . Power 3 | . . . . . . . . . 1 . . . . . . . . . . 1 . . . . 1 . Propulsion 4 | . . . . . 2 . . . 1 . . . . . 1 . . . . . . . . . . . Utility 10 | . . . . . 2 2 . . . 2 . . . . 1 . . . . . . . 2 . 1 . Weapon 1 | . . . . . . . . . . . . . . . . . . . . 1 . . . . . . Parts Attached 316 | 8 7 . 1 3 31 34 . 14 24 14 2 . 6 1 22 9 9 12 2 27 11 3 17 26 7 26 Power 42 | 1 1 . . . 4 6 . 2 4 2 . . 1 . 2 1 1 . . 3 3 . 2 3 3 3 Engine 10 | 1 1 . . . 3 3 . . 1 1 . . . . . . . . . . . . . . . . Core 10 | . . . . . 1 3 . 1 2 . . . . . 2 . . . . . 1 . . . . . Reactor 22 | . . . . . . . . 1 1 1 . . 1 . . 1 1 . . 3 2 . 2 3 3 3 Propulsion 83 | 2 2 . . . 11 12 . 2 5 2 1 . . . 6 4 1 2 . 8 5 . 2 6 2 10 Treads 8 | 2 2 . . . . 1 . . . . . . . . . . . 1 . 2 . . . . . . Leg 64 | . . . . . 9 5 . . 4 2 1 . . . 6 4 1 1 . 6 5 . 2 6 2 10 Wheel 1 | . . . . . . 1 . . . . . . . . . . . . . . . . . . . . Hover 1 | . . . . . 1 . . . . . . . . . . . . . . . . . . . . . Flight 9 | . . . . . 1 5 . 2 1 . . . . . . . . . . . . . . . . . Utility 137 | 3 1 . 1 1 8 13 . 8 9 9 1 . 4 1 11 3 3 8 2 13 2 2 8 14 2 10 Device 60 | 2 1 . . 1 2 4 . 1 3 3 1 . 2 . 5 . . 7 . 5 1 . 7 7 1 7 Storage 7 | 1 . . 1 . . 1 . . 2 . . . 1 . . . . . . . . . . 1 . . Processor 23 | . . . . . 1 . . 1 1 3 . . . 1 3 2 . . . 3 . . 1 3 1 3 Hackware 22 | . . . . . 1 5 . 5 2 1 . . . . 2 . . . 1 3 1 1 . . . . Protection 25 | . . . . . 4 3 . 1 1 2 . . 1 . 1 1 3 1 1 2 . 1 . 3 . . Artifact . | . . . . . . . . . . . . . . . . . . . . . . . . . . . Weapon 54 | 2 3 . . 2 8 3 . 2 6 1 . . 1 . 3 1 4 2 . 3 1 1 5 3 . 3 Energy Gun 13 | . 3 . . . 6 2 . . . . . . . . . 1 . . . 1 . . . . . . Energy Cannon 12 | . . . . . . . . . . 1 . . 1 . . . 2 . . 1 1 1 4 1 . . Ballistic Gun 9 | 2 . . . . . . . . . . . . . . . . 2 2 . . . . . . . 3 Ballistic Cannon 4 | . . . . 1 . . . . . . . . . . . . . . . 1 . . 1 1 . . Launcher 7 | . . . . 1 . 1 . 2 1 . . . . . 2 . . . . . . . . . . . Special Weapon . | . . . . . . . . . . . . . . . . . . . . . . . . . . . Impact Weapon 4 | . . . . . 2 . . . 2 . . . . . . . . . . . . . . . . . Slashing Weapon 4 | . . . . . . . . . 2 . . . . . 1 . . . . . . . . 1 . . Piercing Weapon 1 | . . . . . . . . . 1 . . . . . . . . . . . . . . . . . Special Melee Weapon . | . . . . . . . . . . . . . . . . . . . . . . . . . . . Unidentified Prototypes 43 | . . . . . 5 3 . 1 3 . . . 5 . 1 1 1 . . 3 1 5 3 11 . . Corrupted Parts 5 | . . . . . . . . . . . . . . . . . 1 2 . . . . . 1 . 1 System Corruption 33 | . . . . . . . . . . . . . . . . . 5 20 . . . . . 7 . 1 Parts Lost 84 | . 4 . . . 2 5 . 1 . 1 1 1 . . 4 . 3 2 9 . 4 . . 5 2 40 Power 13 | . . . . . . 2 . 1 . . . . . . 1 . . . 1 . . . . . 1 7 Propulsion 30 | . 2 . . . 1 2 . . . . 1 . . . 1 . 1 2 2 . 1 . . 1 1 15 Utility 33 | . 1 . . . 1 1 . . . 1 . 1 . . 2 . 2 . 6 . 2 . . 4 . 12 Weapon 8 | . 1 . . . . . . . . . . . . . . . . . . . 1 . . . . 6 Highest Loss Streak 32 | . 1 . . . 1 2 . 1 . 1 1 1 . . 2 . 2 2 9 . 2 . . 2 1 32 To Critical Strikes 9 | . . . . . . . . . . . . . . . . . . . . . 1 . . 1 . 7 Average Backups 11 | 1 6 7 8 8 9 15 5 4 7 13 14 14 14 14 14 14 14 14 15 14 13 13 13 11 10 10 Power . | . . . . . . . . . . . 1 2 1 2 1 1 1 1 1 . . 1 . . . . Propulsion 1 | . . . . . . 1 . . 1 2 2 2 3 3 2 2 1 . . 1 1 1 1 . 2 1 Utility 6 | . 2 3 4 4 6 8 3 2 4 6 6 6 5 6 6 7 7 8 9 7 8 8 7 6 4 4 Weapon 3 | . 3 4 4 4 3 4 2 1 1 3 4 4 3 2 2 2 3 4 4 4 2 1 2 2 3 2 Tool/Special . | . . . . . . . . . . . . . . . . . . . . . . . . . . . Unused Backups 53 | . 6 1 . . 6 9 . 1 4 1 . . 1 . 2 3 . 1 . 5 . 1 4 1 1 6 Power 7 | . . . . . 1 1 . . . . . . . . 1 2 . . . . . . . 1 . 1 Propulsion 4 | . . . . . . . . 1 1 . . . . . . . . . . . . . 1 . . 1 Utility 25 | . 2 . . . 3 5 . . 3 . . . . . 1 . . 1 . 3 . 1 3 . . 3 Weapon 15 | . 4 1 . . 1 3 . . . 1 . . 1 . . 1 . . . 2 . . . . 1 . Tool/Special 2 | . . . . . 1 . . . . . . . . . . . . . . . . . . . . 1 Average Slot Usage (%) 93 | . 96 100 100 100 98 98 92 91 94 96 100 100 98 99 96 97 95 97 86 91 92 83 82 86 82 76 Engine 3 | . 14 14 14 14 6 3 . . 4 4 5 5 2 . . . . . . . . . . . . . Core 1 | . . . . . 2 2 7 5 7 . . . . . 3 2 . . . . 3 4 3 . . . Reactor 5 | . . . . . . . . 1 . 4 5 5 8 11 5 7 10 10 8 10 10 9 8 12 13 13 Treads 4 | . 27 28 28 28 2 . . . . . . . . . . . . 3 4 2 3 . . . . . Leg 19 | . . . . . 32 25 . . 4 27 29 29 29 29 30 31 30 26 24 22 22 18 15 21 22 21 Flight 3 | . . . . . . . 30 29 27 . . . . . . . . . . . . . . . . . Device 11 | . 11 14 14 14 10 11 15 14 12 7 8 6 5 11 10 10 11 10 4 6 12 12 15 16 15 14 Storage 5 | . 14 14 14 14 9 6 . . 3 5 5 5 5 5 5 5 5 5 5 4 4 4 4 4 3 2 Processor 8 | . . . . . 6 . . 3 6 19 23 23 20 16 13 19 17 15 12 7 9 9 8 9 15 12 Hackware 7 | . . . . . . 23 30 26 15 7 5 5 5 5 7 4 . . . 11 4 4 4 1 . . Protection 4 | . . . . . 8 3 . . . 2 2 3 5 5 5 5 8 12 13 6 4 5 3 5 3 3 Energy Gun 4 | . 19 14 14 14 14 8 . . . . . . . . . . . . . . 1 . . . . . Energy Cannon 3 | . . . . . . . . . . . 2 4 4 11 9 9 7 . . . . 4 11 12 2 1 Ballistic Gun 3 | . 8 14 14 12 . . . . . . . . . . . . 2 10 10 12 10 9 3 . . 1 Impact Weapon 1 | . . . . . 2 6 7 6 4 . . . . . . . . . . . . . . . . . Slashing Weapon 1 | . . . . . . . . . 3 9 7 5 6 . . . . . . . . . . . 3 1 Peak Build Rating 224 | 9 10 10 10 10 37 51 40 48 69 91 94 94 100 100 118 121 142 142 131 156 167 177 194 213 215 224 Average Rating 95 | 5 8 10 10 8 31 41 39 42 61 85 92 92 92 97 110 115 126 134 118 141 156 167 190 196 208 189 On Entrance 89 | . 7 10 10 10 9 35 39 40 48 66 91 93 91 100 98 114 121 142 131 80 156 166 168 191 199 211 Avg Prop Armor Cover (%) 6 | . . . . . 12 15 . . 4 . 7 . . . . . . 3 2 3 3 . . 1 . . Naked Turns . | . . . . . . . . . . . . . . . . . . . . . . . . . . . Heaviest Build 182 | 13 13 13 18 20 31 69 11 21 37 62 63 58 72 70 86 93 101 99 99 113 136 144 174 182 175 182 Greatest Support 184 | 40 40 40 40 40 57 65 21 22 66 89 89 89 89 89 119 134 137 137 115 160 176 176 178 184 180 182 Greatest Overweight (x) 5 | . . . . . 1 5 . . 1 . . . . . . . . 1 1 . 1 . 1 1 1 1 Average Overweight (x) . | . . . . . . 1 . . . . . . . . . . . . . . . . . . . . Largest Inventory Capacity 20 | 8 8 8 10 10 10 20 5 5 15 15 15 15 15 15 15 15 15 15 15 15 15 15 15 15 15 15 Average Capacity 13 | 7 8 8 9 10 10 18 5 5 8 15 15 15 15 15 15 15 15 15 15 15 15 15 15 15 15 13 Most Carried 20 | 2 8 8 8 10 10 20 5 5 11 15 15 15 15 15 15 15 15 15 15 15 15 15 15 15 15 15 Average Carried 12 | 1 6 7 8 8 9 15 4 4 7 13 14 14 14 14 14 14 14 14 15 14 14 14 14 14 13 12 Final Capacity 15 | 8 8 8 10 10 10 5 5 5 15 15 15 15 15 15 15 15 15 15 15 15 15 15 15 15 15 5 Final Carried 15 | 2 8 8 8 10 10 5 5 5 11 15 15 15 15 15 14 15 15 15 15 15 14 15 15 15 15 . Class Distribution -------------------- 21% | Mutant 15% | Scavenger-Tank 12% | Hacker-Mutant 12% | Scavenger-Mutant 8% | Hacker-Sprinter 6% | Scavenger-Skirmisher 4% | Generator-Mutant 3% | Skirmisher Dominant Class ---------------- Mutant | -10/Materials Mutant | -10/Mines Mutant | -10/Exiles Mutant | -9/Mines Scavenger-Mutant | -8/Materials Hacker-Mutant | -7/Factory Hacker-Mutant | -7/Waste Hacker-Sprinter | -7/Factory Hacker-Sprinter | -6/Factory Gladiator | -5/Factory Mutant | -5/Upper Caves Mutant | -5/Upper Caves Mutant | -5/Zhirov Skirmisher | -4/Proximity Caves Hacker-Skirmisher | -4/Factory Commander-Mutant | -4/Extension Scavenger-Mutant | -4/Cetus Scavenger-Mutant | -4/Archives Scavenger-Skirmisher | -4/Hub_04(d) Scavenger-Skirmisher | -3/Research Scavenger-Tank | -3/Armory Scavenger-Tank | -3/Lab Scavenger-Tank | -2/Research Scavenger-Tank | -2/Testing Generator-Mutant | -1/Access Generator-Mutant | -1/Command Resources | -11 -10 -10 -10 -9 -8 -7 -7 -7 -6 -5 -5 -5 -5 -4 -4 -4 -4 -4 -4 -3 -3 -3 -2 -2 -1 -1 ----------- Run | Yrd Mat Min Exi Min Mat Fac Was Fac Fac Fac Upp Upp Zhi Pro Fac Ext Cet Arc Hub Res Arm Lab Res Tes Acc Com Matter Collected 9884 | 460 226 24 . 47 504 749 . 408 355 381 143 86 165 52 419 120 250 542 150 591 1308 . 788 1222 162 732 Remotely . | . . . . . . . . . . . . . . . . . . . . . . . . . . . Salvage Created 22128 | 261 734 46 . 27 1963 1112 . 524 156 597 191 67 333 97 920 1057 635 693 350 420 2559 . 2319 4092 1089 1886 Parts 907 | 23 37 11 . 7 72 39 . 19 1 27 14 2 8 9 33 43 28 46 19 10 112 . 86 171 24 66 Haulers Intercepted 17 | . 2 . . . 6 1 . . . 1 . . . . 2 1 . . . 1 . . 3 . . . Recyclers Shooed 9 | 2 1 1 . . . 1 . 1 . . . . . . . . . . . . . . 2 1 . . Parts Field Recycled . | . . . . . . . . . . . . . . . . . . . . . . . . . . . Retrieved Matter . | . . . . . . . . . . . . . . . . . . . . . . . . . . . Parts Self-Destructed 20 | . . . . . . . . . . . 7 1 6 6 . . . . . . . . . . . . Prevented 3 | . . . . . . . . . . . . 3 . . . . . . . . . . . . . . Parts Restored . | . . . . . . . . . . . . . . . . . . . . . . . . . . . Kills | -11 -10 -10 -10 -9 -8 -7 -7 -7 -6 -5 -5 -5 -5 -4 -4 -4 -4 -4 -4 -3 -3 -3 -2 -2 -1 -1 ------- Run | Yrd Mat Min Exi Min Mat Fac Was Fac Fac Fac Upp Upp Zhi Pro Fac Ext Cet Arc Hub Res Arm Lab Res Tes Acc Com Combat Hostiles Destroyed 289 | . 17 . . 4 27 19 . 8 1 8 7 1 . 1 11 9 8 4 4 3 36 . 21 46 22 32 Melee 15 | . . . . . . 3 . . 1 8 2 1 . . . . . . . . . . . . . . Guns 90 | . 16 . . 1 23 4 . . . . . . . . . . . 4 4 3 32 . 2 . . 1 Cannons 81 | . . . . . . . . . . . . . . 1 7 8 3 . . . 4 . 10 27 10 11 AOE 56 | . . . . 3 . 7 . 8 . . 5 . . . 2 . . . . . . . . 1 11 19 Classes Destroyed 27 | 3 5 . . . 4 1 . 1 . . 1 . . . 1 1 . . . . 3 . . 6 . 1 Worker 14 | 1 . . . . 2 5 . 1 . . . . . . 1 . . . . . . . . . 2 2 Builder 8 | . 1 . . . 2 3 . . . . . . . . . . . . . . . . 1 . 1 . Tunneler 13 | 8 1 3 . . . 1 . . . . . . . . . . . . . . . . . . . . Hauler 17 | . 2 . . . 6 1 . . . 1 . . . . 2 1 . . . 1 . . 3 . . . Recycler 18 | 1 1 . . . 2 4 . 4 1 1 . . . . . 1 . . . . . . 1 1 . 1 Mechanic 2 | . . . . . . . . 1 . . . . . . . . . . . . 1 . . . . . Operator 14 | . 1 . . . 1 . . 2 . . . . . . . 1 . 7 1 . . . 1 . . . Drone 1 | . . . . . . . . . . . . . . . 1 . . . . . . . . . . . Watcher 17 | . . . . . 1 1 . 1 1 . . . . . . . 1 . 1 2 3 . 4 2 . . Swarmer 51 | . 6 . . 4 . 7 . 8 . 4 5 . . . 1 . . . . . 4 . . 3 3 6 Cutter 1 | . . . . . . . . . . . . . . . . . . . . . 1 . . . . . Grunt 106 | . 11 . . . 17 7 . . . . . . . . 5 2 . . 3 1 21 . 6 17 7 9 Brawler 7 | . . . . . 1 . . . . . . . . . 1 . . . . . 1 . 1 2 1 . Duelist 1 | . . . . . . . . . . . . . . . . . . . . . . . . 1 . . Protector 2 | . . . . . . . . . . . . . . . . . . . . . . . . 2 . . Researcher 1 | . . . . . . . . . . . . . . . . . . . . . . . . 1 . . Sentry 32 | . . . . . 8 2 . . . 2 . . . . . 5 . 4 . 2 1 . 3 1 3 1 Specialist 2 | . . . . . . . . . . . . . . . . . . . . . 2 . . . . . Hunter 25 | . . . . . 1 . . . . . . 1 . . . 1 . . . . 3 . 5 7 . 7 Programmer 39 | . . . . . . 3 . . 1 2 2 . . 1 3 . . . 1 . 1 . 6 9 7 3 Heavy 2 | . . . . . . . . . . . . . . . . . . . . . 2 . . . . . Q-Series 1 | . . . . . . . . . . . . . . . . . . . . . . . . 1 . . Behemoth 4 | . . . . . . . . . . . . . . . . 1 . . . . . . . . 1 2 Cetus Guard 8 | . . . . . . . . . . . . . . . . . 8 . . . . . . . . . Striker 3 | . . . . . . . . . . . . . . . . . . . . . . . . 2 . 1 Executioner 3 | . . . . . . . . . . . . . . . . . . . . . . . . . . 3 Alpha 7 1 | . . . . . . . . . . . . . . . . . . . . . . . . 1 . . Samaritan 2 | . . . . . . . . . . . 1 . . 1 . . . . . . . . . . . . Best Kill Streak 15 | 4 3 1 . 4 9 8 . 5 1 6 5 1 . 1 5 3 5 5 3 1 10 . 8 11 12 15 Combat Bots Only 14 | . 3 . . 4 4 7 . 4 1 6 5 1 . 1 4 3 4 1 3 1 9 . 7 11 10 14 Max Kills in Single Turn 5 | 1 1 1 . 3 3 4 . 2 1 1 4 1 . 1 2 1 1 1 2 1 2 . 1 2 3 5 Gunslinging 1 | . . . . . . . . . . . . . . . . . . . . . 1 . . . . . Exploded 4 | . . . . 3 . 4 . 2 . . 4 . . . 2 . . . . . . . . 1 2 4 Melee 1 | . . . . . . 1 . . 1 1 1 1 . . . . . . . . . . . . . . Uniques/NPCs Destroyed 1 | . . . . . . . . . . . . . . . . 1 . . . . . . . . . . A7 (-4/Extension) Combat | -11 -10 -10 -10 -9 -8 -7 -7 -7 -6 -5 -5 -5 -5 -4 -4 -4 -4 -4 -4 -3 -3 -3 -2 -2 -1 -1 -------- Run | Yrd Mat Min Exi Min Mat Fac Was Fac Fac Fac Upp Upp Zhi Pro Fac Ext Cet Arc Hub Res Arm Lab Res Tes Acc Com Hostile Shots Fired 2631 | . 95 . . 14 113 201 . 38 36 47 20 30 . 6 90 44 64 25 123 8 296 . 118 339 127 797 Missed 893 | . 25 . . 7 28 70 . 17 16 15 4 8 . 1 29 18 13 6 37 6 118 . 45 96 46 288 Intercepted 9 | . . . . . . . . . . . . . . . . . . . . . . . . 9 . . Deflected 24 | . . . . . . . . . . . . . . . . . . . . . 4 . 6 14 . . Hits 1738 | . 70 . . 7 85 131 . 21 20 32 16 22 . 5 61 26 51 19 86 2 178 . 73 243 81 509 Melee 14 | . . . . . . . . . . . . . . . 1 . . . . . 2 . . 1 . 10 Projectile 1724 | . 70 . . 7 85 131 . 21 20 32 16 22 . 5 60 26 51 19 86 2 176 . 73 242 81 499 AOE 6 | . . . . . . . . . . . . . . . . . . . . . . . . 6 . . Critical Strikes 105 | . . . . . 3 4 . 1 . 3 2 . . 1 13 1 7 . 4 . 8 . 6 14 4 34 Part Disruptions 6 | . . . . . . . . . . . 1 . . . . . . . . . 1 . 1 1 . 2 Damage Taken 30223 | . 771 . . 59 1301 1358 . 336 292 640 422 396 . 102 1115 613 1183 404 2082 23 2156 . 902 3144 1855 11069 Core 2947 | . 69 . . 17 182 141 . 45 35 63 . 34 . 23 71 65 127 . 171 . 210 . . 84 43 1567 Absorbed by Shields 4208 | . . . . . . 28 . . . . . . . . . 23 . . . 24 1841 . 945 1347 . . Redirected to Shielding 106 | . . . . . . . . . . . . . . . . . . . 106 . . . . . . . Ignored by Resistances 789 | . . . . . 54 40 . . . . . . . . 201 . 184 86 . . . . 9 215 . . Regen/Repaired (Parts) 3999 | . . . . . . 119 . 119 23 20 . . . . . . . . . 156 168 . 695 603 789 1307 Core Remaining (%) 80 | 100 . . . 65 66 . . 73 95 . . . . 88 . . . . 62 . . 78 . 94 . . Volleys Fired 929 | 30 82 8 . 2 94 38 . 8 2 5 33 12 4 26 41 39 36 48 23 16 111 17 62 120 29 43 Largest 4 | 2 2 2 . 2 2 2 . 1 1 1 1 1 2 2 2 2 2 2 2 3 3 1 4 4 1 3 Hottest 320 | 40 100 70 . 80 122 122 . 39 43 90 90 90 180 180 180 180 180 70 70 105 190 120 248 320 200 280 Shots Fired 1771 | 60 162 16 . 4 188 66 . 7 2 5 34 12 8 52 66 78 71 93 46 46 281 17 150 229 29 49 Gun 959 | 60 162 16 . 2 186 62 . . . . . . . . . . . 93 46 45 254 . 26 . . 7 Cannon 770 | . . . . . 2 . . . . 5 31 11 8 52 59 78 71 . . 1 27 17 124 220 29 35 Launcher 42 | . . . . 2 . 4 . 7 2 . 3 1 . . 7 . . . . . . . . 9 . 7 Special . | . . . . . . . . . . . . . . . . . . . . . . . . . . . Kinetic 600 | 60 53 8 . . 2 . . . . . . . . . . . . 93 46 42 233 . 33 11 5 14 Thermal 920 | . 109 8 . 2 172 62 . . . 5 31 11 8 52 59 78 35 . . 4 48 17 52 115 24 28 Explosive 19 | . . . . 2 . 4 . 7 2 . 3 1 . . . . . . . . . . . . . . Electromagnetic 232 | . . . . . 14 . . . . . . . . . 7 . 36 . . . . . 65 103 . 7 Robot Hit Streak 34 | 9 13 8 . 2 34 21 . 2 . . 3 . 4 5 14 28 18 22 6 5 18 . 14 21 7 10 Robot Miss Streak 7 | 4 5 3 . 1 2 1 . 1 . . . 1 1 1 6 2 4 3 5 3 3 . 2 7 3 3 Penetration Max 1 | . . . . . . . . . . . . . . . . . . 1 1 1 1 . 1 1 . 1 Secondary Targets 17 | . 3 . . . 2 . . . . . . . . . . . . . 2 1 8 . 1 . . . Max Gunslinging Chain 1 | . 1 . . . 1 . . . . . . . . . . . . . 1 1 1 . 1 . . . Shots Hit Robots 1239 | 33 101 10 . 2 164 86 . 11 11 27 11 7 6 3 39 57 52 58 26 26 192 . 102 149 21 45 Core Hits 672 | 11 38 3 . 6 73 30 . 12 . 11 8 2 4 2 34 20 18 25 11 14 91 . 40 109 36 74 Critical Kills 58 | 1 . . . . 1 1 . . . . . . . . . 1 . 5 5 3 15 . 2 14 4 6 Critical Parts Destroyed 70 | . . . . . . 9 . 2 3 . . . . . . . . 6 3 1 15 . 2 13 5 11 Critical Strikes 171 | 1 9 1 . . 17 11 . 2 3 3 2 . . . . 1 . 12 8 4 33 . 4 32 9 19 Burn 30 | . 9 1 . . 16 1 . . . . . . . . . . . . . . 3 . . . . . Meltdown 8 | . . . . . . . . . . . . . . . . 1 . . . . . . 1 5 1 . Destroy 107 | 1 . . . . . . . . . . . . . . . . . 12 8 4 30 . 3 22 8 19 Corrupt 5 | . . . . . . . . . . . . . . . . . . . . . . . . 5 . . Smash 16 | . . . . . 1 10 . 2 3 . . . . . . . . . . . . . . . . . Sever 5 | . . . . . . . . . . 3 2 . . . . . . . . . . . . . . . Melee Attacks 267 | . . . . . 11 75 . 48 67 33 15 7 2 . . . . . . . . . . 1 5 3 Impact 179 | . . . . . 11 75 . 48 45 . . . . . . . . . . . . . . . . . Slashing 85 | . . . . . . . . . 19 33 15 7 2 . . . . . . . . . . 1 5 3 Piercing 3 | . . . . . . . . . 3 . . . . . . . . . . . . . . . . . Sneak Attacks 29 | . . . . . 2 14 . 6 3 2 1 . . . . . . . . . . . . . . 1 Combat Hostiles . | . . . . . . . . . . . . . . . . . . . . . . . . . . . Follow-up Attacks 2 | . . . . . . . . . 1 . 1 . . . . . . . . . . . . . . . Damage Inflicted 56734 | 466 1302 122 . 138 3161 3559 . 1215 664 1208 835 302 309 132 2283 2361 2083 1568 911 784 5671 . 4294 6670 5700 10996 Guns 15016 | 466 1278 122 . 13 2817 984 . . . . . . . . . . . 1568 911 784 5255 . 640 . . 178 Cannons 22120 | . . . . . 18 . . . . . . . 222 132 1437 2293 1851 . . . 416 . 3620 5367 2959 3805 Explosions 13576 | . . . . 120 125 474 . 574 . . 352 . . . 823 . 232 . . . . . . 1303 2741 6832 Melee 5808 | . . . . . 183 2099 . 641 664 1208 483 302 87 . . . . . . . . . . . . 141 Ramming 214 | . 24 . . 5 18 2 . . . . . . . . 23 68 . . . . . . 34 . . 40 Kinetic 10553 | 466 366 59 . . 18 . . . . . . . . . . . . 1568 911 761 4970 . 865 215 86 268 Thermal 30444 | . 912 63 . 13 2642 984 . . . . . . 222 132 1437 2293 1189 . . 23 701 . 1458 3075 5614 9686 Explosive 1682 | . . . . 120 . 474 . 574 . . 352 . . . 162 . . . . . . . . . . . Electromagnetic 8033 | . . . . . 300 . . . . . . . . . 661 . 894 . . . . . 1937 3380 . 861 Impact 3380 | . . . . . 183 2099 . 641 457 . . . . . . . . . . . . . . . . . Slashing 2428 | . . . . . . . . . 207 1208 483 302 87 . . . . . . . . . . . . 141 Piercing . | . . . . . . . . . . . . . . . . . . . . . . . . . . . Highest Corruption 22 | . . . . . . 5 12 12 4 2 6 6 6 6 5 5 10 22 3 . 2 2 4 22 4 19 Average Corruption 6 | . . . . . . 2 6 12 3 1 4 6 6 6 3 5 6 10 2 . 1 2 2 16 3 5 Corruption Purged 30 | . . . . . . . . . . . . . . . . . . 30 . . . . . . . . Corruption Blocked . | . . . . . . . . . . . . . . . . . . . . . . . . . . . Effects 323 | . . . . . . 28 1 49 14 2 16 9 6 19 8 17 19 14 1 . 13 2 12 66 5 22 Message Errors 79 | . . . . . . 6 . 16 4 . 4 1 2 8 3 2 5 4 . . 4 . 1 8 2 9 Matter Fused 69 | . . . . . . 6 . 9 3 . 3 4 . 5 1 2 1 3 . . 2 . 4 17 1 8 Heat Flow Errors 40 | . . . . . . 6 . 6 1 . 2 . 2 1 1 2 1 1 . . 1 1 3 9 1 2 Energy Discharges 38 | . . . . . . 4 . 7 2 1 3 3 . 2 . 3 3 1 . . 1 . . 5 1 2 Parts Rejected 5 | . . . . . . . . 1 1 . . . . . . 1 1 1 . . . . . . . . Parts Fused 3 | . . . . . . . . . . . 1 . . . 1 . . . . . . . . 1 . . Data Loss (minor) 28 | . . . . . . 2 . 5 2 . 1 1 2 1 . 3 1 1 . . . . 3 6 . . Data Loss (major) 16 | . . . . . . 4 . 3 . 1 . . . . . . 3 . . . 2 1 . 2 . . Misfires 14 | . . . . . . . . . . . 1 . . 1 1 3 . . . . 2 . . 5 . 1 Alerts 10 | . . . . . . . . . 1 . 1 . . . . . 1 . 1 . 1 . 1 4 . . Misdirections 5 | . . . . . . . 1 1 . . . . . . . . 2 . . . . . . 1 . . Weapon Failures 16 | . . . . . . . . 1 . . . . . 1 1 1 1 3 . . . . . 8 . . Overload Shots 1 | . . . . . . 1 . . . . . . . . . . . . . . . . . . . . Overflow Damage 4105 | . . . . . 47 929 . 349 322 34 . 13 89 . 57 51 42 . . . 19 . 221 214 1009 709 Projectiles 1327 | . . . . . . 11 . . . . . . 89 . 57 13 42 . . . 19 . 202 196 619 79 Explosions 1054 | . . . . . . 25 . 1 . . . . . . . . . . . . . . . 18 390 620 Melee 1724 | . . . . . 47 893 . 348 322 34 . 13 . . . 38 . . . . . . 19 . . 10 Knockbacks 37 | . . . . . 1 8 . 2 6 . . . . . . . . . . . 5 . 1 11 2 1 Impact 16 | . . . . . 1 7 . 2 6 . . . . . . . . . . . . . . . . . Kinetic 19 | . . . . . . . . . . . . . . . . . . . . . 5 . 1 11 1 1 Secondary 2 | . . . . . . 1 . . . . . . . . . . . . . . . . . . 1 . Self-Inflicted Damage 444 | . . . . 5 24 . . 33 . . . 69 . . 122 . . . . . . . . 79 17 95 Shots 21 | . . . . 1 1 . . 1 . . . 1 . . 5 . . . . . . . . 6 1 5 Rammed 7 | . 5 . . 2 . . . . . . . . . . . . . . . . . . . . . . Targets Rammed 18 | . 5 . . 2 3 1 . . . . . . . . 1 2 . . . . . . 1 . . 3 Kicked 11 | . . . . . 3 1 . . . . . . . . 1 2 . . . . . . 1 . . 3 Crushed . | . . . . . . . . . . . . . . . . . . . . . . . . . . . Highest Temperature 392 | . 36 . . 36 90 358 . 287 163 48 172 140 250 181 317 269 392 145 237 162 290 259 345 377 59 195 Average Temperature 57 | . 16 . . 20 23 79 . 108 30 19 87 66 57 31 81 90 133 34 68 44 58 70 41 83 12 61 Received Heat Transfer 2993 | . 348 . . . 639 402 . 30 . 45 . . . 12 219 27 . 54 172 . 323 . 52 301 189 180 Effects 6 | . . . . . . 1 . . . . . . . . 2 2 . . . . 1 . . . . . Shutdowns 1 | . . . . . . . . . . . . . . . 1 . . . . . . . . . . . Energy Bleed 2 | . . . . . . . . . . . . . . . . 2 . . . . . . . . . . Interference 2 | . . . . . . . . . . . . . . . 1 . . . . . 1 . . . . . Damage (minor) 1 | . . . . . . 1 . . . . . . . . . . . . . . . . . . . . Siege Activations . | . . . . . . . . . . . . . . . . . . . . . . . . . . . Martial Activations . | . . . . . . . . . . . . . . . . . . . . . . . . . . . Shielding Activations 8 | . . . . . . . . . . . . . . . . . . . . . 1 . 5 2 . . Total Turns 150 | . . . . . . . . . . . . . . . . . . . . . 9 . 83 58 . . Longest Duration 57 | . . . . . . . . . . . . . . . . . . . . . 9 . 34 57 . . Robots Disrupted . | . . . . . . . . . . . . . . . . . . . . . . . . . . . Combat Hostiles . | . . . . . . . . . . . . . . . . . . . . . . . . . . . Robots Corrupted 44 | . . . . . 1 7 . 5 2 . . . . . 2 1 5 . . . . . 8 13 . . Combat Hostiles 30 | . . . . . . 2 . . . . . . . . 2 . 5 . . . . . 8 13 . . Parts Fried 104 | . . . . . 2 20 . 8 2 . . . . . 4 2 3 . . . . . 21 40 . 2 Impact Corruptions 56 | . . . . . 2 29 . 11 10 . . . . . . 2 . . . . . . 1 . . 1 Robots Melted 18 | . 2 . . . 4 3 . . . . . . . . . 1 . . . . . . 1 5 1 1 Combat Hostiles 17 | . 1 . . . 4 3 . . . . . . . . . 1 . . . . . . 1 5 1 1 Parts Melted 80 | . 15 . . . 28 9 . . . . . . . . 2 2 1 . . . . . 3 15 2 3 Heat Transferred 32719 | . 3330 259 . 37 6860 2072 . . . . . . 259 111 1258 1924 1149 . . 50 1687 . 1147 2670 3485 6421 Parts Sabotaged 4 | . . . . . . . . . . . . . . . . . . . . . 3 . . . . 1 Parts Stolen . | . . . . . . . . . . . . . . . . . . . . . . . . . . . Parts Stripped . | . . . . . . . . . . . . . . . . . . . . . . . . . . . Power Chain Reactions 6 | . . . . . 1 . . . . . . . . . . . 1 . . . . . . 2 . 2 Alert | -11 -10 -10 -10 -9 -8 -7 -7 -7 -6 -5 -5 -5 -5 -4 -4 -4 -4 -4 -4 -3 -3 -3 -2 -2 -1 -1 ------- Run | Yrd Mat Min Exi Min Mat Fac Was Fac Fac Fac Upp Upp Zhi Pro Fac Ext Cet Arc Hub Res Arm Lab Res Tes Acc Com Maximum Alert Level 4 | . . . . . 2 1 . . 1 . . . . . . 2 1 . . . 3 . 2 4 4 4 Low Security (%) 69 | 100 100 100 . 100 48 80 100 100 86 100 . . . . 100 45 31 100 100 100 38 . 78 . . . Level 1 13 | . . . . . 43 19 . . 13 . . . . . . 35 68 . . . 7 . 10 25 . . Level 2 5 | . . . . . 7 . . . . . . . . . . 19 . . . . 12 . 10 36 15 . Level 3 5 | . . . . . . . . . . . . . . . . . . . . . 41 . . 25 21 14 Level 4 5 | . . . . . . . . . . . . . . . . . . . . . . . . 12 63 85 Level 5 . | . . . . . . . . . . . . . . . . . . . . . . . . . . . High Security . | . . . . . . . . . . . . . . . . . . . . . . . . . . . Max Security . | . . . . . . . . . . . . . . . . . . . . . . . . . . . Peak Influence 1593 | 15 172 58 . 108 450 331 114 202 224 114 . . . . 145 442 260 160 170 73 959 . 499 1142 1581 1593 Initial 1011 | . . 58 . . 35 196 114 79 77 92 . . . . . 65 201 65 . 73 19 . . 273 681 1011 Average 249 | 2 79 13 . 9 214 147 114 136 96 53 . . . . 29 258 207 78 83 8 488 . 154 640 1154 1309 Influence Increases 12568 | 50 650 15 . 108 955 753 . 574 519 258 160 45 15 90 385 814 199 217 387 135 1520 . 883 1602 1158 1076 Destroy 0b10 Robot/C 6180 | . 340 . . 80 540 380 . 160 20 160 140 20 . 20 200 340 160 80 80 60 860 . 520 900 480 640 Destroy 0b10 Robot/NC 560 | 50 30 15 . . 70 75 . 45 10 10 . . 15 . 15 35 5 35 10 15 20 . 50 25 15 15 Destroy Leader 1194 | . 84 . . 10 164 84 . 22 12 32 20 10 . 10 32 44 . . 12 26 186 . 122 134 90 100 Allied During Kill 474 | . . . . . . . . . . . . . . . . 302 . . . . 104 . 19 3 46 . Successful Hack 559 | . 29 . . . 13 52 . 89 67 10 . . . . 18 5 . . . 26 109 . 94 23 24 . Select Force Hacks 270 | . 60 . . . 60 . . 30 20 . . . . . . . . . 100 . . . . . . . Disable Machine 720 | . 15 . . . 15 15 . 60 45 15 . . . . 60 30 . 60 60 . 90 . . 165 75 15 Anti-Garrison Action 150 | . . . . . . . . . . . . . . . . . . . . . . . . . 150 . Destroy Structure 1411 | . 2 . . 18 18 42 . 78 60 16 . . . . 60 58 34 42 20 8 106 . 63 202 278 306 Partial Spotted 135 | . . . . . . . . 45 75 . . . . . . . . . . . . . 15 . . . Lose Combat Pursuer 915 | . 90 . . . 75 105 . 45 210 15 . 15 . 60 . . . . 105 . 45 . . 150 . . Influence Decreases 11191 | 50 498 167 . 16 614 860 212 529 489 373 234 45 15 90 252 586 396 381 247 237 643 915 396 952 714 1280 Entered New Map 3411 | . . 94 . . 57 237 212 35 82 97 29 . . . . 68 160 99 . 67 19 915 . 214 456 570 Time Decay 6420 | 50 458 73 . 16 537 573 . 464 407 276 205 45 15 90 212 278 206 262 157 170 464 . 396 518 238 310 Lost Part 810 | . 40 . . . 20 50 . 10 . . . . . . 40 . 30 20 90 . 40 . . 50 20 400 Lost Ally 400 | . . . . . . . . 20 . . . . . . . 240 . . . . 120 . . 20 . . Purge Threat 150 | . . . . . . . . . . . . . . . . . . . . . . . . 150 . . Squads Dispatched 111 | . 4 . . . 4 13 . 10 11 4 . . . . 4 3 . . 8 5 14 . 3 14 10 4 Investigation 34 | . 3 . . . 2 6 . 4 6 . . . . . 2 . . . 2 3 5 . . . 1 . Extermination 29 | . . . . . . 5 . 2 4 2 . . . . 2 . . . . . 2 . 3 5 2 2 Reinforcement 28 | . 1 . . . 2 2 . 3 1 2 . . . . . 3 . . 1 2 5 . . 4 1 1 Assault 12 | . . . . . . . . . . . . . . . . . . . 4 . 2 . . 2 3 1 Garrison 8 | . . . . . . . . 1 . . . . . . . . . . 1 . . . . 3 3 . Intercept . | . . . . . . . . . . . . . . . . . . . . . . . . . . . Searches Triggered . | . . . . . . . . . . . . . . . . . . . . . . . . . . . Unchained Authorized 4 | . . . . . . . . . 1 1 . . . . 1 . . . . . . . . . 1 . Construction Impeded 2 | . . . . . . . . . . . . . . . . 2 . . . . . . . . . . Haulers Reinforced 2 | . . . . . . 1 . . . . . . . . . . . . . 1 . . . . . . Active Scanning Responses . | . . . . . . . . . . . . . . . . . . . . . . . . . . . Cargo Convoy Interrupts . | . . . . . . . . . . . . . . . . . . . . . . . . . . . Stealth | -11 -10 -10 -10 -9 -8 -7 -7 -7 -6 -5 -5 -5 -5 -4 -4 -4 -4 -4 -4 -3 -3 -3 -2 -2 -1 -1 --------- Run | Yrd Mat Min Exi Min Mat Fac Was Fac Fac Fac Upp Upp Zhi Pro Fac Ext Cet Arc Hub Res Arm Lab Res Tes Acc Com Distress Signals 27 | . . . . . 5 . . 2 1 . . . . . . 2 1 . 2 7 3 . 1 . 2 1 Communications Jammed . | . . . . . . . . . . . . . . . . . . . . . . . . . . . Distress Signals . | . . . . . . . . . . . . . . . . . . . . . . . . . . . Times Spotted 546 | . 33 . . 4 46 29 3 23 25 19 6 2 . 3 18 24 15 20 20 15 63 . 34 67 25 52 Peak Tracking Total 18 | . 4 . . 4 6 7 3 7 6 5 5 1 . 4 5 6 5 1 8 4 8 . 4 6 9 18 Tactical Retreats 41 | . 5 . . . 4 4 . 3 9 1 . 1 . 1 . . . . 4 . 3 . . 6 . . Traps | -11 -10 -10 -10 -9 -8 -7 -7 -7 -6 -5 -5 -5 -5 -4 -4 -4 -4 -4 -4 -3 -3 -3 -2 -2 -1 -1 ------- Run | Yrd Mat Min Exi Min Mat Fac Was Fac Fac Fac Upp Upp Zhi Pro Fac Ext Cet Arc Hub Res Arm Lab Res Tes Acc Com Traps Triggered 20 | . 1 . . . . 1 . 1 3 . 1 . . . 4 . . . . . 4 . 3 1 . 1 Indirectly 2 | . . . . . . . . . . . . . . . 2 . . . . . . . . . . . Trap Hack Attempts . | . . . . . . . . . . . . . . . . . . . . . . . . . . . Triggered . | . . . . . . . . . . . . . . . . . . . . . . . . . . . Disarmed . | . . . . . . . . . . . . . . . . . . . . . . . . . . . Reprogrammed . | . . . . . . . . . . . . . . . . . . . . . . . . . . . Reused . | . . . . . . . . . . . . . . . . . . . . . . . . . . . Traps Extracted . | . . . . . . . . . . . . . . . . . . . . . . . . . . . Installed . | . . . . . . . . . . . . . . . . . . . . . . . . . . . Triggered . | . . . . . . . . . . . . . . . . . . . . . . . . . . . Machines | -11 -10 -10 -10 -9 -8 -7 -7 -7 -6 -5 -5 -5 -5 -4 -4 -4 -4 -4 -4 -3 -3 -3 -2 -2 -1 -1 ---------- Run | Yrd Mat Min Exi Min Mat Fac Was Fac Fac Fac Upp Upp Zhi Pro Fac Ext Cet Arc Hub Res Arm Lab Res Tes Acc Com Machines Disabled 55 | . 1 . . . 1 1 . 4 3 1 . . 1 . 4 3 . 4 4 . 6 3 . 12 6 1 Max in Single Turn 2 | . 1 . . . 1 1 . 1 1 1 . . 1 . 2 1 . 1 2 . 1 1 . 1 2 1 Garrison Access 15 | . . . . . . 3 . 4 2 1 . . . . . . . . 2 . . . 2 . 1 . Network Hub 2 | . . . . . . . . . . . . . . . . . . . 2 . . . . . . . Machines Repaired . | . . . . . . . . . . . . . . . . . . . . . . . . . . . Machines Dismantled . | . . . . . . . . . . . . . . . . . . . . . . . . . . . Machines Sabotaged 2 | . . . . . . . . . . . . . . . . . . . 2 . . . . . . . Overloaded Fab Kills . | . . . . . . . . . . . . . . . . . . . . . . . . . . . Hacking | -11 -10 -10 -10 -9 -8 -7 -7 -7 -6 -5 -5 -5 -5 -4 -4 -4 -4 -4 -4 -3 -3 -3 -2 -2 -1 -1 --------- Run | Yrd Mat Min Exi Min Mat Fac Was Fac Fac Fac Upp Upp Zhi Pro Fac Ext Cet Arc Hub Res Arm Lab Res Tes Acc Com Machines Accessed 159 | . 9 . 1 . 11 21 . 24 27 6 . 1 4 . 9 6 . . 3 6 10 1 8 6 6 . Terminals 76 | . 7 . . . 8 7 . 12 12 1 . 1 . . 3 6 . . 3 1 4 . 4 4 3 . Fabricators 22 | . . . . . . 5 . 3 5 1 . . . . 2 . . . . 1 4 . 1 . . . Repair Stations 12 | . . . . . . 2 . 2 2 1 . . . . 1 . . . . 1 1 . 1 . 1 . Recycling Units 17 | . 2 . . . 1 3 . 1 4 1 . . . . 2 . . . . 2 1 . . . . . Scanalyzers 11 | . . . . . 2 1 . 2 2 . . . . . 1 . . . . 1 . . . 1 1 . Garrison Access 15 | . . . . . . 3 . 4 2 2 . . . . . . . . . . . . 2 1 1 . Total Hacks 517 | . 22 . 2 . 35 66 . 81 92 15 . 1 17 . 23 11 . . 5 27 36 1 47 23 13 . Successful 294 | . 12 . 2 . 15 45 . 49 63 9 . 1 17 . 16 6 . . 2 16 17 1 18 3 2 . Failed 221 | . 9 . . . 20 21 . 32 29 6 . . . . 6 5 . . 3 11 19 . 29 20 11 . Catastrophic 34 | . 1 . . . 6 . . 5 . . . . . . . . . . 1 2 5 . 5 5 4 . Database Lockouts 2 | . 1 . . . . . . . . . . . . . 1 . . . . . . . . . . . Manual 213 | . 21 . . . 25 32 . 40 44 4 . . . . 8 5 . . 5 4 5 . 15 3 2 . Terminals 269 | . 20 . . . 24 28 . 42 55 3 . 1 . . 5 11 . . 5 9 15 . 24 20 7 . Fabricators 89 | . . . . . . 20 . 15 14 4 . . . . 8 . . . . 5 18 . 5 . . . Repair Stations 41 | . . . . . . 4 . 13 4 3 . . . . 1 . . . . 1 2 . 11 . 2 . Recycling Units 35 | . 2 . . . 4 4 . 1 11 2 . . . . 7 . . . . 3 1 . . . . . Scanalyzers 40 | . . . . . 7 5 . 6 6 . . . . . 2 . . . . 9 . . . 2 3 . Garrison Access 23 | . . . . . . 5 . 4 2 3 . . . . . . . . . . . . 7 1 1 . Terminal Hacks 99 | . 3 . 2 . . 12 . 10 28 1 . 1 17 . 2 3 . . . 2 6 1 9 2 . . Record 12 | . . . 2 . . 1 . . 2 . . 1 5 . . . . . . . . 1 . . . . Part Schematic 14 | . 1 . . . . 2 . . 5 . . . 4 . . . . . . . 1 . 1 . . . Robot Analysis 7 | . 1 . . . . 1 . . 1 . . . 4 . . . . . . . . . . . . . Prototype ID Bank 10 | . 1 . . . . 1 . . 4 . . . 4 . . . . . . . . . . . . . Open Door 5 | . . . . . . . . . . . . . . . 1 3 . . . . 1 . . . . . Level Access Points 2 | . . . . . . . . 1 1 . . . . . . . . . . . . . . . . . Branch Access Points 5 | . . . . . . 1 . . 1 1 . . . . 1 . . . . . . . 1 . . . Machine Index 1 | . . . . . . . . . . . . . . . . . . . . . 1 . . . . . Terminal Index 4 | . . . . . . 1 . 1 1 . . . . . . . . . . . . . 1 . . . Fabricator Index 4 | . . . . . . 1 . 1 . . . . . . . . . . . 1 . . 1 . . . Alert Level 3 | . . . . . . . . . 1 . . . . . . . . . . 1 . . 1 . . . Unreport Threat 1 | . . . . . . . . . . . . . . . . . . . . . . . . 1 . . Locate Traps 2 | . . . . . . . . . . . . . . . . . . . . . 1 . 1 . . . Maintenance Status 5 | . . . . . . 1 . 1 2 . . . . . . . . . . . . . 1 . . . Recall Investigation 1 | . . . . . . . . . 1 . . . . . . . . . . . . . . . . . Recall Extermination 6 | . . . . . . 1 . 2 3 . . . . . . . . . . . . . . . . . Hauler Manifests 1 | . . . . . . . . . 1 . . . . . . . . . . . . . . . . . Registered Components 3 | . . . . . . . . 1 1 . . . . . . . . . . . . . 1 . . . Registered Prototypes 2 | . . . . . . . . 1 . . . . . . . . . . . . 1 . . . . . Zone Layout 11 | . . . . . . 2 . 2 4 . . . . . . . . . . . 1 . 1 1 . . Fabricator Hacks 43 | . . . . . . 10 . 9 6 2 . . . . 5 . . . . 4 7 . . . . . Network Status 4 | . . . . . . 1 . . 1 . . . . . 1 . . . . . 1 . . . . . Load Schematic 25 | . . . . . . 7 . 5 4 1 . . . . 3 . . . . 2 3 . . . . . Build 14 | . . . . . . 2 . 4 1 1 . . . . 1 . . . . 2 3 . . . . . Repair Station Hacks 21 | . . . . . . 2 . 6 4 2 . . . . . . . . . . 2 . 5 . . . Scan Component 11 | . . . . . . 1 . 3 2 1 . . . . . . . . . . 1 . 3 . . . Repair 9 | . . . . . . 1 . 3 1 1 . . . . . . . . . . 1 . 2 . . . Refit 1 | . . . . . . . . . 1 . . . . . . . . . . . . . . . . . Recycling Unit Hacks 13 | . . . . . 1 3 . 1 3 1 . . . . 1 . . . . 2 1 . . . . . Retrieve Components 13 | . . . . . 1 3 . 1 3 1 . . . . 1 . . . . 2 1 . . . . . Scanalyzer 23 | . . . . . 5 5 . 3 2 . . . . . 1 . . . . 5 . . . 1 1 . Insert Component 3 | . . . . . 1 1 . . . . . . . . . . . . . 1 . . . . . . Analyze 6 | . . . . . 1 3 . . . . . . . . . . . . . 2 . . . . . . Retrieve Study 14 | . . . . . 3 1 . 3 2 . . . . . 1 . . . . 2 . . . 1 1 . Garrison Access Hacks 12 | . . . . . . 3 . 4 2 1 . . . . . . . . . . . . 2 . . . Seal Access 12 | . . . . . . 3 . 4 2 1 . . . . . . . . . . . . 2 . . . Unauthorized Hacks 83 | . 9 . . . 9 10 . 16 18 2 . . . . 7 3 . . 2 3 1 . 2 . 1 . Terminals 53 | . 7 . . . 7 4 . 10 14 2 . . . . 1 3 . . 2 1 . . 2 . . . Track 1 | . . . . . . . . . 1 . . . . . . . . . . . . . . . . . Assimilate 3 | . . . . . . . . 2 1 . . . . . . . . . . . . . . . . . Botnet 16 | . 2 . . . . 2 . 4 4 1 . . . . 1 . . . . 1 . . 1 . . . Disrupt 2 | . . . . . . . . . 1 . . . . . . . . . . . . . 1 . . . Operators 5 | . . . . . 1 1 . 1 1 1 . . . . . . . . . . . . . . . . Skim 24 | . 5 . . . 6 1 . 3 6 . . . . . . 3 . . . . . . . . . . Sabotage 2 | . . . . . . . . . . . . . . . . . . . 2 . . . . . . . Fabricators 16 | . . . . . . 5 . 4 3 . . . . . 2 . . . . 1 1 . . . . . Prioritize 5 | . . . . . . 1 . 2 . . . . . . . . . . . 1 1 . . . . . Download 1 | . . . . . . . . . 1 . . . . . . . . . . . . . . . . . Recompile 10 | . . . . . . 4 . 2 2 . . . . . 2 . . . . . . . . . . . Repair Stations 4 | . . . . . . 1 . 1 . . . . . . . . . . . 1 . . . . 1 . Mechanics 1 | . . . . . . . . 1 . . . . . . . . . . . . . . . . . . Patch 3 | . . . . . . 1 . . . . . . . . . . . . . 1 . . . . 1 . Recycling Units 8 | . 2 . . . 1 . . . 1 . . . . . 4 . . . . . . . . . . . Monitor 1 | . . . . . . . . . . . . . . . 1 . . . . . . . . . . . Reject 1 | . . . . . . . . . . . . . . . 1 . . . . . . . . . . . Recyclers 1 | . . . . . . . . . . . . . . . 1 . . . . . . . . . . . Mask 2 | . . . . . . . . . 1 . . . . . 1 . . . . . . . . . . . Tunnel 3 | . 2 . . . 1 . . . . . . . . . . . . . . . . . . . . . Scanalyzers 2 | . . . . . 1 . . 1 . . . . . . . . . . . . . . . . . . Extract 2 | . . . . . 1 . . 1 . . . . . . . . . . . . . . . . . . Garrison Access . | . . . . . . . . . . . . . . . . . . . . . . . . . . . Data Cores Recovered 3 | . . . . . . . . 2 . . . . . . . . . . 1 . . . . . . . Used 2 | . . . . . . . . 1 . . . . . . . . . . 1 . . . . . . . Hacking Detections 116 | . 6 . . . 9 16 . 19 23 5 . . . . 7 3 . . 1 4 7 . 5 6 5 . Full Trace Events 7 | . . . . . . 1 . 1 1 . . . . . . . . . . 1 3 . . . . . Feedback Events 1 | . . . . . . 1 . . . . . . . . . . . . . . . . . . . . Corruption 1 | . . . . . . 1 . . . . . . . . . . . . . . . . . . . . Feedback Blocked . | . . . . . . . . . . . . . . . . . . . . . . . . . . . Robot Schematics Acquired . | . . . . . . . . . . . . . . . . . . . . . . . . . . . Robots Built . | . . . . . . . . . . . . . . . . . . . . . . . . . . . Authchips . | . . . . . . . . . . . . . . . . . . . . . . . . . . . Time . | . . . . . . . . . . . . . . . . . . . . . . . . . . . Total Robot Build Rating . | . . . . . . . . . . . . . . . . . . . . . . . . . . . Part Schematics Acquired 29 | . 1 . . . 11 3 . 1 6 . . . 4 . . . . . . 1 1 . 1 . . . Parts Built 19 | . . . . . . 2 . 5 1 2 . . . . 2 . . . . 4 3 . . . . . Authchips 10 | . . . . . . 2 . 3 1 1 . . . . 1 . . . . 1 1 . . . . . Time 739 | . . . . . . 116 . 222 35 64 . . . . 64 . . . . 96 142 . . . . . Total Part Build Rating 125 | . . . . . . 6 . 24 6 16 . . . . 16 . . . . 32 25 . . . . . Part Studies Acquired 14 | . . . . . 3 1 . 3 2 . . . . . 1 . . . . 2 . . . 1 1 . Parts Repaired 9 | . . . . . . 1 . 3 1 1 . . . . . . . . . . 1 . 2 . . . Time 302 | . . . . . . 25 . 93 22 25 . . . . . . . . . . 49 . 88 . . . Parts Recycled . | . . . . . . . . . . . . . . . . . . . . . . . . . . . Recycled Matter . | . . . . . . . . . . . . . . . . . . . . . . . . . . . Retrieved Matter . | . . . . . . . . . . . . . . . . . . . . . . . . . . . Retrieved Components 23 | . . . . . 2 4 . 2 5 1 . . . . . . . . . 6 3 . . . . . Parts Scanalyzed 3 | . . . . . 1 1 . . . . . . . . . . . . . 1 . . . . . . Part Schematics Acquired 3 | . . . . . 1 1 . . . . . . . . . . . . . 1 . . . . . . Parts Damaged . | . . . . . . . . . . . . . . . . . . . . . . . . . . . Bothacking | -11 -10 -10 -10 -9 -8 -7 -7 -7 -6 -5 -5 -5 -5 -4 -4 -4 -4 -4 -4 -3 -3 -3 -2 -2 -1 -1 ------------ Run | Yrd Mat Min Exi Min Mat Fac Was Fac Fac Fac Upp Upp Zhi Pro Fac Ext Cet Arc Hub Res Arm Lab Res Tes Acc Com Used RIF Installer . | . . . . . . . . . . . . . . . . . . . . . . . . . . . Robots Hacked . | . . . . . . . . . . . . . . . . . . . . . . . . . . . Non-combat . | . . . . . . . . . . . . . . . . . . . . . . . . . . . Combat . | . . . . . . . . . . . . . . . . . . . . . . . . . . . Robot Hacks Applied . | . . . . . . . . . . . . . . . . . . . . . . . . . . . Relay Couplers Released 9 | . . . . . . . . . . . . . . . . . . . 4 . . . 2 . 3 . Machine Destruction 9 | . . . . . . . . . . . . . . . . . . . 4 . . . 2 . 3 . Fabnet Peak Effective % . | . . . . . . . . . . . . . . . . . . . . . . . . . . . Robots Rewired 15 | . . . . . . . . . . . . . . . . 9 . . . . 6 . . . . . Allies Hacked . | . . . . . . . . . . . . . . . . . . . . . . . . . . . Hacks Repelled . | . . . . . . . . . . . . . . . . . . . . . . . . . . . Allies | -11 -10 -10 -10 -9 -8 -7 -7 -7 -6 -5 -5 -5 -5 -4 -4 -4 -4 -4 -4 -3 -3 -3 -2 -2 -1 -1 -------- Run | Yrd Mat Min Exi Min Mat Fac Was Fac Fac Fac Upp Upp Zhi Pro Fac Ext Cet Arc Hub Res Arm Lab Res Tes Acc Com Total Allies 26 | . . . . . . . . 2 1 . . . . . . 14 . . . . 6 . . . 3 . Largest Group 13 | . . . . . . . . 1 1 . . . . . . 13 . . . . 4 . . . 3 . Highest-Rated Group 692 | . . . . . . . . 26 26 . . . . . . 692 . . . . 224 . . . 379 . Highest-Rated Ally 159 | . . . . . . . . 26 26 . . . . . . 159 . . . . 56 . . . 135 . Total Orders 14 | . . . . . . . . . . . . . . . . . . . . . . . 12 2 . . RETURN 14 | . . . . . . . . . . . . . . . . . . . . . . . 12 2 . . Ally Attacks 241 | . . . . . . . . . . . . . . . . 112 . . . . 54 . 45 21 9 . Total Damage 6640 | . . . . . . . . . . . . . . . . 3227 . . . . 2049 . 775 349 240 . Kills 27 | . . . . . . . . . . . . . . . . 13 . . . . 7 . 5 . 2 . Allies Corrupted . | . . . . . . . . . . . . . . . . . . . . . . . . . . . Allies Melted . | . . . . . . . . . . . . . . . . . . . . . . . . . . . Intel | -11 -10 -10 -10 -9 -8 -7 -7 -7 -6 -5 -5 -5 -5 -4 -4 -4 -4 -4 -4 -3 -3 -3 -2 -2 -1 -1 ------- Run | Yrd Mat Min Exi Min Mat Fac Was Fac Fac Fac Upp Upp Zhi Pro Fac Ext Cet Arc Hub Res Arm Lab Res Tes Acc Com Active Infowar (turns) 15051 | 42 26 . . 377 791 1970 19 1167 1071 671 631 305 218 481 857 613 439 642 217 1166 462 246 1158 963 519 . Optics 7082 | . . . . . . . . 646 1071 671 631 305 218 481 857 613 439 642 217 291 . . . . . . Sensors 10025 | . . . . . . 1273 19 1098 990 455 157 . . 477 572 . . 319 207 1116 462 246 1158 957 519 . IFF 884 | . . . . . . . . . . 104 428 268 84 . . . . . . . . . . . . . Terrain 447 | 29 . . . . . . . . . 224 . . . . . . . . . . . . . 194 . . Structural 8 | . . . . . . 8 . . . . . . . . . . . . . . . . . . . . Seismic 5400 | 13 26 . . 377 791 1947 19 1138 1071 18 . . . . . . . . . . . . . . . . Decoding 702 | . . . . . . . . . . . . . . 346 356 . . . . . . . . . . . Robot Analysis Total 5 | . 1 . . . . . . . . . . . 4 . . . . . . . . . . . . . Derelict Logs Recovered 4 | . . . . 1 . . . . . . 2 . . 1 . . . . . . . . . . . . Drone Launches 22 | . . . . . . . . . . . . . . . . . . . . . . . 20 2 . . Drone Recoveries 21 | . . . . . . . . . . . . . . . . . . . . . . . 20 1 . . Decoded 0b10 Intel 7 | . . . . . . . . . . . . . . . 7 . . . . . . . . . . . Traps 3 | . . . . . . . . . . . . . . . 3 . . . . . . . . . . . Emergency Access 4 | . . . . . . . . . . . . . . . 4 . . . . . . . . . . . Exploration | -11 -10 -10 -10 -9 -8 -7 -7 -7 -6 -5 -5 -5 -5 -4 -4 -4 -4 -4 -4 -3 -3 -3 -2 -2 -1 -1 ------------- Run | Yrd Mat Min Exi Min Mat Fac Was Fac Fac Fac Upp Upp Zhi Pro Fac Ext Cet Arc Hub Res Arm Lab Res Tes Acc Com Turns Passed 21186 | 272 1589 325 345 432 1656 2453 19 1167 1071 671 631 305 218 481 857 613 439 642 324 1234 1169 350 1290 1431 519 683 Spaces Moved 16008 | 110 757 187 216 260 945 1338 66 2186 2420 548 559 269 186 419 673 338 246 125 200 977 602 223 706 743 332 377 Core 6 | 6 . . . . . . . . . . . . . . . . . . . . . . . . . . Treads 1592 | 104 757 187 216 260 68 . . . . . . . . . . . . . . . . . . . . . Legs 9379 | . . . . . 877 826 . . 153 548 559 269 186 419 673 338 246 125 200 977 602 223 706 743 332 377 Wheels 498 | . . . . . . 498 . . . . . . . . . . . . . . . . . . . . Hover . | . . . . . . . . . . . . . . . . . . . . . . . . . . . Flight 4533 | . . . . . . 14 66 2186 2267 . . . . . . . . . . . . . . . . . Fastest Speed 23 | 50 160 160 160 160 100 26 26 26 23 93 86 93 93 93 93 105 111 111 108 108 109 122 122 116 115 110 Average Speed 91 | 154 160 160 160 160 112 125 26 26 28 94 92 93 93 93 97 108 111 117 111 110 114 122 124 122 117 124 Slowest Speed 197 | 160 160 160 160 160 185 188 26 27 97 97 93 93 93 93 105 112 112 173 173 120 174 122 197 188 183 190 Overloaded Moves . | . . . . . . . . . . . . . . . . . . . . . . . . . . . Propulsion Burnouts . | . . . . . . . . . . . . . . . . . . . . . . . . . . . Robots Hopped 12 | . . . . . . . . 7 5 . . . . . . . . . . . . . . . . . Potential Cave-ins 3 | . . . . . . . . . . . . . . 3 . . . . . . . . . . . . Cave-ins Triggered . | . . . . . . . . . . . . . . . . . . . . . . . . . . . Teleports 1 | . . . . . . . . . . . . . . . . . . . . . 1 . . . . . Exploration Rate (%) 50 | 7 98 31 57 75 78 36 66 55 62 19 72 57 61 66 18 57 60 84 25 33 36 77 23 62 14 22 Regions Visited 26 Branch Regions 15 Pre-discovered Areas 14 | . 2 . 1 2 2 . . . 2 . 2 . 3 . . . . . . . . . . . . . Known Exits Taken 21 | . 1 1 1 . . . . 1 1 1 1 1 1 1 1 1 1 1 1 1 1 1 1 1 1 . Unknown Exits Taken 3 | 1 . . . 1 1 . . . . . . . . . . . . . . . . . . . . . Scrap Searched 11 | . . 2 . 2 . . . . . . 3 . . 4 . . . . . . . . . . . . Spaces Dug 350 | . . . . . 8 37 . 60 78 7 19 10 . 33 10 4 . . 6 1 12 . 8 23 32 2 Terrain Destroyed 861 | . . . . 18 13 41 . 84 78 8 70 26 . 49 34 18 21 26 14 2 37 . 20 69 99 134 Melee 143 | . . . . . 8 36 . 38 47 4 3 . . . . . . . . . . . . . 5 2 Projectile 267 | . . . . . . 1 . . . 4 31 11 . 49 19 18 4 26 14 2 21 . 20 38 5 4 AOE 427 | . . . . 18 5 4 . 46 31 . 36 15 . . 15 . 17 . . . 12 . . 23 82 123 Terrain Rammed . | . . . . . . . . . . . . . . . . . . . . . . . . . . . Walls Destroyed . | . . . . . . . . . . . . . . . . . . . . . . . . . . . Machines Disabled . | . . . . . . . . . . . . . . . . . . . . . . . . . . . Actions | -11 -10 -10 -10 -9 -8 -7 -7 -7 -6 -5 -5 -5 -5 -4 -4 -4 -4 -4 -4 -3 -3 -3 -2 -2 -1 -1 --------- Run | Yrd Mat Min Exi Min Mat Fac Was Fac Fac Fac Upp Upp Zhi Pro Fac Ext Cet Arc Hub Res Arm Lab Res Tes Acc Com Total 20284 | 149 972 198 217 270 1325 1878 67 2652 2672 657 620 297 222 458 803 513 329 523 251 1099 899 286 997 1035 393 502 Wait 1843 | . 96 . . . 172 287 . 375 111 25 4 . 5 9 20 18 9 319 23 28 102 20 138 60 8 14 Move 15959 | 109 756 186 215 259 944 1338 65 2171 2409 547 558 268 185 418 672 337 245 124 199 976 601 222 705 742 331 377 Hop 12 | . . . . . . . . 7 5 . . . . . . . . . . . . . . . . . Pick Up 214 | 1 17 2 . 3 17 29 1 10 21 9 2 1 5 1 12 6 7 5 . 14 4 7 14 13 4 9 Fast Attach 225 | 8 . . . . 17 14 . 7 15 8 . . 7 1 8 8 5 11 3 21 11 5 20 26 7 23 Attach 88 | . 4 . . . 3 6 . 4 3 7 1 1 2 . 7 . 4 3 . 9 7 3 5 6 2 11 Detach 39 | 1 . . . . 1 2 . . 1 6 . . . . 4 1 . 1 . 3 2 1 7 3 2 4 Swap 281 | . 4 . 1 3 31 60 . 13 17 11 7 8 2 1 21 3 16 2 3 7 23 1 17 27 . 3 Drop 308 | . 8 2 1 1 32 28 1 9 26 8 1 . 11 2 17 16 7 10 . 25 11 10 28 37 5 12 Fire 929 | 30 82 8 . 2 94 38 . 8 2 5 33 12 4 26 41 39 36 48 23 16 111 17 62 120 29 43 Melee 258 | . . . . . 11 75 . 48 62 31 14 7 1 . . . . . . . . . . 1 5 3 Ram . | . . . . . . . . . . . . . . . . . . . . . . . . . . . Kick 11 | . . . . . 3 1 . . . . . . . . 1 2 . . . . . . 1 . . 3 Crush 7 | . 5 . . 2 . . . . . . . . . . . . . . . . . . . . . . Escape Stasis . | . . . . . . . . . . . . . . . . . . . . . . . . . . . Rewire 110 | . . . . . . . . . . . . . . . . 83 . . . . 27 . . . . . Trap . | . . . . . . . . . . . . . . . . . . . . . . . . . . . Miscellaneous . | . . . . . . . . . . . . . . . . . . . . . . . . . . . Route ------- -11/Scrapyard -10/Materials (discovered 5 exits: *Mat x3 / *Min / [*Sub]) -10/Mines (discovered 3 exits: Mat / *Exi / [*Sub]) -10/Exiles (discovered 2 exits: *Min x2) -9/Mines -8/Materials (discovered 2 exits: *Fac x2) -7/Factory (discovered 5 exits: *Fac / *Sto x2 / *Low x2) -7/Waste -7/Factory (discovered 6 exits: *Fac x4 / *Low x2) -6/Factory (discovered 6 exits: *Fac x4 / *Low x2) -5/Factory (discovered 3 exits: *Fac / *Upp x2) -5/Upper Caves -5/Upper Caves -5/Zhirov -4/Proximity Caves -4/Factory (discovered 4 exits: *Upp x2 / *Ext x2) -4/Extension (discovered 2 exits: *Res / *Cet) -4/Cetus (discovered 2 exits: *Res / *Arc) -4/Archives (discovered 3 exits: *Res / *Hub x2) -4/Hub_04(d) -3/Research (discovered 2 exits: *Res / *Arm) -3/Armory -3/Lab -2/Research (discovered 2 exits: *Tes x2) -2/Testing -1/Access (discovered 2 exits: Sur / *Com) -1/Command History --------- Turn | Location | Event 8 | -11/Scrapyard | Discovered new exit (range 15) 273 | -11/Scrapyard | Entered Materials 300 | -10/Materials | Build established: Mutant 446 | -10/Materials | Discovered new exit (range 16) 1006 | -10/Materials | Discovered new exit (range 3) 1104 | -10/Materials | Central database locked down 1138 | -10/Materials | Discovered new exit (range 4) 1185 | -10/Materials | Identified exit to Mines 1315 | -10/Materials | Learned 2 Mines zone layouts 1368 | -10/Materials | Learned location of 2 exits from Subcaves 1412 | -10/Materials | Learned 2 Mines zone layouts 1446 | -10/Materials | Learned 4 Recycling zone layouts 1492 | -10/Materials | Learned 2 Storage zone layouts 1850 | -10/Materials | Discovered new exit (range 5) 1862 | -10/Materials | Entered Mines 1863 | -10/Mines | Identified exit to Exiles 1863 | -10/Mines | Identified exit to Materials 1910 | -10/Mines | Discovered new exit (range 8) 1984 | -10/Mines | A weapon hastily lodged in a ceiling crevice suddenly fell to the ground 2181 | -10/Mines | Deemed a non-threat by the Exiles lab entrance 2187 | -10/Mines | Entered Exiles 2188 | -10/Exiles | Identified exit to Mines 2227 | -10/Exiles | Met 8R-AWN 2256 | -10/Exiles | Met EX-HEX 2348 | -10/Exiles | Met EX-DEC 2377 | -10/Exiles | Learned location of Zion (-7) 2472 | -10/Exiles | Discovered exit to Mines (range 11) 2532 | -10/Exiles | Entered Mines 2930 | -9/Mines | Learned location of Storage (-7) 2932 | -9/Mines | Discovered new exit (range 12) 2964 | -9/Mines | Entered Materials 2964 | -8/Materials | Evolved 4 slots: Propulsion x2, Utility x2 3513 | -8/Materials | Build established: Scavenger-Mutant 3611 | -8/Materials | Discovered new exit (range 5) 4213 | -8/Materials | Discovered new exit (range 16) 4378 | -8/Materials | Learned 4 Recycling zone layouts 4428 | -8/Materials | Learned Factory emergency access door positions 4469 | -8/Materials | Learned Storage emergency access door positions 4498 | -8/Materials | Learned Factory emergency access door positions 4588 | -8/Materials | Learned Factory trap positions 4620 | -8/Materials | Entered Factory 4620 | -7/Factory | Evolved 2 slots: Utility x2 4621 | -7/Factory | Identified exit to Storage 4622 | -7/Factory | Loaded intel: 85 trap records 4905 | -7/Factory | Discovered new exit (range 5) 4930 | -7/Factory | Build established: Hacker-Mutant 5576 | -7/Factory | Destroyed 7 combat bots 5988 | -7/Factory | Identified exit to Lower Caves 6123 | -7/Factory | Fabricated Imp. VTOL Module? 6258 | -7/Factory | Fabricated Imp. VTOL Module (x1) 6565 | -7/Factory | Repaired Adv. Heat Sink 6872 | -7/Factory | Discovered new exit (range 10) 7073 | -7/Factory | Sucked down chute 7073 | -7/Factory | Entered Waste 7082 | -7/Waste | Spotted C-40 Crusher 7082 | -7/Waste | Spotted C-40 Crusher 7084 | -7/Waste | Spotted C-40 Crusher 7085 | -7/Waste | Discovered new exit (range 16) 7088 | -7/Waste | EMP discharged 7088 | -7/Waste | System corruption reached 10% 7092 | -7/Waste | Entered Factory 7121 | -7/Factory | Identified exit to Factory 7248 | -7/Factory | Garrison activated, responded to threat 7335 | -7/Factory | Build established: Hacker-Sprinter 7361 | -7/Factory | Discovered exit to Lower Caves (range 15) 7411 | -7/Factory | Repaired Broken Lgt. Antimatter Reactor 7506 | -7/Factory | Discovered exit to Lower Caves (range 6) 7742 | -7/Factory | Fabricated Imp. Hacking Suite (x1) 7777 | -7/Factory | Fabricated Imp. Cesium-ion Thruster (x1) 7885 | -7/Factory | Repaired Imp. Cesium-ion Thruster 7915 | -7/Factory | Repaired Imp. VTOL Module 8100 | -7/Factory | Fabricated Lgt. Fission Core (x2) 8150 | -7/Factory | Fabricated Imp. Hacking Suite (x1) 8259 | -7/Factory | Entered another Factory area 8259 | -6/Factory | Evolved 2 slots: Power x1, Propulsion x1 8469 | -6/Factory | Fabricated Adv. Hacking Suite (x1) 8601 | -6/Factory | Repaired Xenon Bombardment Thruster+ 8675 | -6/Factory | Learned location of Lower Caves (-6) 8717 | -6/Factory | Discovered new exit (range 18) 8725 | -6/Factory | Learned Hub_04(d) trap positions 8821 | -6/Factory | Learned location of 1 exit from Lower Caves 8823 | -6/Factory | Identified exit to Factory 8835 | -6/Factory | Learned 2 Extension zone layouts 8835 | -6/Factory | Spotted B-75 Beast 8842 | -6/Factory | Identified exit to Lower Caves 8858 | -6/Factory | Loaded intel: 54 interactive machine locations 9277 | -6/Factory | Unchained authorized (QV-33N) 9330 | -6/Factory | Entered another Factory area 9330 | -5/Factory | Evolved 2 slots: Utility x2 9331 | -5/Factory | Identified exit to Upper Caves 9516 | -5/Factory | Repaired Power Sword+ 9537 | -5/Factory | Unchained authorized (QV-33N) 9704 | -5/Factory | Discovered new exit (range 18) 9740 | -5/Factory | Identified exit to Factory 9859 | -5/Factory | Fabricated Imp. Thunder Leg (x2) 10001 | -5/Factory | Entered Upper Caves 10030 | -5/Upper Caves | Encountered a Warlord checkpoint 10387 | -5/Upper Caves | Learned location of Armory (-3) 10561 | -5/Upper Caves | Build established: Mutant 10621 | -5/Upper Caves | Discovered new exit (range 11) 10630 | -5/Upper Caves | Identified exit to Upper Caves 10632 | -5/Upper Caves | Entered another Upper Caves area 10776 | -5/Upper Caves | Spotted B-75 Beast 10814 | -5/Upper Caves | Encountered a Warlord checkpoint 10851 | -5/Upper Caves | Discovered new exit (range 14) 10899 | -5/Upper Caves | Identified exit to Zhirov 10937 | -5/Upper Caves | Entered Zhirov 10937 | -5/Zhirov | Discovered new exit (range 3) 10954 | -5/Zhirov | Met Zhirov 10971 | -5/Zhirov | Learned location of Quarantine (-3) 10971 | -5/Zhirov | Learned location of Testing (-2) 10971 | -5/Zhirov | Learned location of Command (-1) 10980 | -5/Zhirov | Zhirov requested help retrieving the SGEMP Prototype 10999 | -5/Zhirov | Found Alien Artifact 10999 | -5/Zhirov | Identified Integrated Reactor 10999 | -5/Zhirov | Installed Integrated Reactor, increased core energy generation (+10) 11014 | -5/Zhirov | Found Alien Artifact 11154 | -5/Zhirov | Identified exit to Proximity Caves 11155 | -5/Zhirov | Entered Proximity Caves 11425 | -4/Proximity Caves | Learned Research terminal intel 11461 | -4/Proximity Caves | Build established: Skirmisher 11633 | -4/Proximity Caves | Discovered exit to Factory (range 5) 11636 | -4/Proximity Caves | Entered Factory 11636 | -4/Factory | Evolved 2 slots: Propulsion x1, Utility x1 11777 | -4/Factory | Found Gamma Bomb Array 11781 | -4/Factory | Found Gamma Bomb Array 11842 | -4/Factory | Unchained authorized (QV-33N) 11844 | -4/Factory | Identified exit to Upper Caves 11844 | -4/Factory | Identified exit to Extension 11993 | -4/Factory | Found Hvy. Insulated Plating 12082 | -4/Factory | Central database locked down 12285 | -4/Factory | Fabricated Imp. Thunder Leg? 12493 | -4/Factory | Entered Extension 12528 | -4/Extension | Rescued a captive Derelict 12528 | -4/Extension | Rescued a captive Derelict 12530 | -4/Extension | Rescued A7 12544 | -4/Extension | Rescued a captive Derelict 12581 | -4/Extension | Build established: Mutant 12623 | -4/Extension | Rescued a captive Derelict 12844 | -4/Extension | Spotted B-86 Titan 12855 | -4/Extension | Spotted B-86 Titan 12871 | -4/Extension | Destroyed B-86 Titan 12881 | -4/Extension | Allies destroyed B-86 Titan 12906 | -4/Extension | Lost 8 allies 12911 | -4/Extension | Destroyed A7 12912 | -4/Extension | Extracted ID and sensor layout for unrecognized location from A7's data core 13035 | -4/Extension | Discovered new exit (range 22) 13035 | -4/Extension | Discovered new exit (range 22) 13074 | -4/Extension | Identified exit to Research 13102 | -4/Extension | Disrupted transfer network 13105 | -4/Extension | Identified exit to Cetus 13106 | -4/Extension | Entered Cetus 13118 | -4/Cetus | Spotted Cetus Guard 13126 | -4/Cetus | Spotted Cetus Guard 13127 | -4/Cetus | Lost 3 allies 13127 | -4/Cetus | Spotted Cetus Guard 13130 | -4/Cetus | Spotted Cetus Guard 13133 | -4/Cetus | Destroyed Cetus Guard 13143 | -4/Cetus | Destroyed Cetus Guard 13153 | -4/Cetus | Destroyed Cetus Guard 13193 | -4/Cetus | Destroyed Cetus Guard 13262 | -4/Cetus | Discovered new exit (range 22) 13293 | -4/Cetus | Spotted Cetus Guard 13303 | -4/Cetus | Spotted Cetus Guard 13306 | -4/Cetus | Build established: Scavenger-Mutant 13308 | -4/Cetus | Spotted Cetus Guard 13315 | -4/Cetus | Spotted Cetus Guard 13317 | -4/Cetus | Destroyed Cetus Guard 13323 | -4/Cetus | Destroyed Cetus Guard 13326 | -4/Cetus | Destroyed Cetus Guard 13344 | -4/Cetus | Destroyed Cetus Guard 13352 | -4/Cetus | Discovered exit to Research (range 23) 13366 | -4/Cetus | Met Revision 17 13389 | -4/Cetus | System corruption reached 10% 13544 | -4/Cetus | Identified exit to Archives 13545 | -4/Cetus | Entered Archives 13686 | -4/Archives | Discovered exit to Research (range 18) 13716 | -4/Archives | Discovered new exit (range 21) 13783 | -4/Archives | Discovered new exit (range 16) 14068 | -4/Archives | Identified exit to Hub_04(d) 14172 | -4/Archives | Build established: Scavenger-Skirmisher 14187 | -4/Archives | Entered Hub_04(d) 14188 | -4/Hub_04(d) | Loaded intel: 26 trap records 14213 | -4/Hub_04(d) | Network Hub disabled 14398 | -4/Hub_04(d) | Garrison activated, responded to threat 14501 | -4/Hub_04(d) | Network Hub disabled 14502 | -4/Hub_04(d) | Discovered exit to Research (range 9) 14511 | -4/Hub_04(d) | Entered Research 14511 | -3/Research | Evolved 2 slots: Power x1, Weapon x1 14512 | -3/Research | Loaded intel: 23 terminal locations 14540 | -3/Research | Lost 9 parts (1p2n6u) 14711 | -3/Research | Revision forces began assault on 0b10 14739 | -3/Research | Met up with Revision 17++ 14869 | -3/Research | Fabricated Imp. Thunder Leg? 14913 | -3/Research | Fabricated Imp. Thunder Leg (x2) 15211 | -3/Research | Research terminal network offline 15234 | -3/Research | Found Prototype Protection 15234 | -3/Research | Identified Centrium Heavy Armor Plating 15321 | -3/Research | Found Exp. Targeting Computer 15605 | -3/Research | Discovered new exit (range 11) 15615 | -3/Research | Identified exit to Research 15726 | -3/Research | Discovered new exit (range 14) 15744 | -3/Research | Identified exit to Armory 15745 | -3/Research | Entered Armory 15863 | -3/Armory | Fabricated Assault Drone Bay (x1) 16226 | -3/Armory | Repaired Adv. KE Penetrator 16398 | -3/Armory | Destroyed 8 combat bots 16472 | -3/Armory | Destroyed 9 combat bots 16495 | -3/Armory | First assault squad dispatched 16755 | -3/Armory | Fabricated Hvy. Shield Leg (x1) 16756 | -3/Armory | Build established: Scavenger-Tank 16760 | -3/Armory | Fabricated Hvy. Shield Leg (x1) 16795 | -3/Armory | Identified Transdimensional Reconstructor 16795 | -3/Armory | Warped through subspace to slip node 16795 | -3/Armory | Discovered new exit (range 1) 16795 | -3/Armory | Identified exit to Lab 16914 | -3/Armory | Entered Lab 16914 | -3/Lab | Discovered exit to Research (range 9) 16928 | -3/Lab | Hidden lab's door opened automatically 16928 | -3/Lab | Sensor layout match revealed 16929 | -3/Lab | Gained access to the hidden lab's interior 16960 | -3/Lab | Unable to decrypt terminal 17021 | -3/Lab | Found Prototype Hackware 17026 | -3/Lab | Found Prototype Protection 17026 | -3/Lab | Identified Exp. Powered Armor 17039 | -3/Lab | Identified Quantum Router 17044 | -3/Lab | Found Prototype Energy Cannon 17117 | -3/Lab | Found Alien Artifact 17121 | -3/Lab | Identified Core Expander 17121 | -3/Lab | Installed Core Expander, added new Weapon slot 17131 | -3/Lab | Found Alien Artifact 17131 | -3/Lab | Identified Integrated Dissipator 17131 | -3/Lab | Installed Integrated Dissipator, increased core heat dissipation (+20) 17164 | -3/Lab | Identified Potential Cannon 17230 | -3/Lab | Found Transdimensional Reconstructor 17264 | -3/Lab | Entered Research 17264 | -2/Research | Evolved 2 slots: Utility x2 17875 | -2/Research | Identified exit to Testing 18085 | -2/Research | Build established: Machinist-Tank 18140 | -2/Research | Repaired Centrium Heavy Armor Plating 18181 | -2/Research | Repaired Adv. Force Field 18202 | -2/Research | Found Prototype Device 18202 | -2/Research | Identified Imp. Particle Accelerator 18439 | -2/Research | Destroyed 7 combat bots 18466 | -2/Research | Build established: Scavenger-Tank 18554 | -2/Research | Entered Testing 18576 | -2/Testing | Spotted PY-ENBNOTIQMV 18591 | -2/Testing | Garrison activated, responded to threat 18871 | -2/Testing | Spotted Striker 18876 | -2/Testing | Spotted Striker 18879 | -2/Testing | Spotted Alpha 7 18884 | -2/Testing | Destroyed Striker 18885 | -2/Testing | Destroyed Striker 18925 | -2/Testing | Destroyed Alpha 7 18934 | -2/Testing | System corruption reached 10% 18937 | -2/Testing | Scanned by Researcher 18990 | -2/Testing | Stole the SGEMP Prototype 19054 | -2/Testing | First assault squad dispatched 19095 | -2/Testing | Found Unknown Protection 19095 | -2/Testing | Identified Adv. Powered Armor 19246 | -2/Testing | Found Prototype Device 19246 | -2/Testing | Identified Exp. Actuator Array 19322 | -2/Testing | Found Prototype Protection 19322 | -2/Testing | Identified SHELL Armor 19617 | -2/Testing | Found Prototype Ballistic Cannon 19617 | -2/Testing | Identified Perforator 19639 | -2/Testing | Found Prototype Processor 19639 | -2/Testing | Identified Spectral Analyzer 19748 | -2/Testing | Destroyed 11 combat bots 19943 | -2/Testing | Discovered new exit (range 8) 19962 | -2/Testing | Found Prototype Energy Cannon 19962 | -2/Testing | Identified Imp. Potential Cannon 19979 | -2/Testing | Identified exit to Access 19985 | -2/Testing | Entered Access 19985 | -1/Access | Evolved 2 slots: Power x1, Utility x1 19986 | -1/Access | Delivered the SGEMP Prototype to Zhirov 19986 | -1/Access | Zhirov transferred Access data 19987 | -1/Access | Loaded intel: 119 machine locations 19987 | -1/Access | Loaded intel: 59 trap records 19987 | -1/Access | Identified exit to Surface 19987 | -1/Access | Discovered exit to Surface (range 154) 19987 | -1/Access | Identified exit to Command 19987 | -1/Access | Discovered exit to Command (range 112) 20065 | -1/Access | Garrison activated, responded to threat 20074 | -1/Access | Zhirov warped through subspace 20114 | -1/Access | Destroyed 9 combat bots 20182 | -1/Access | Unchained authorized (GL-D0S) 20291 | -1/Access | Destroyed B-99 Colossus 20320 | -1/Access | Build established: Generator-Mutant 20338 | -1/Access | Garrison activated, responded to threat 20385 | -1/Access | Destroyed 10 combat bots 20485 | -1/Access | First assault squad dispatched 20504 | -1/Access | Entered Command 20755 | -1/Command | Spotted B-99 Colossus 20795 | -1/Command | Destroyed B-99 Colossus 20816 | -1/Command | Lost 4 parts (1n2u1w) 20894 | -1/Command | Spotted B-99 Colossus 20908 | -1/Command | Destroyed 14 combat bots 20982 | -1/Command | Destroyed B-99 Colossus 21004 | -1/Command | First assault squad dispatched 21020 | -1/Command | Lost 3 parts (1p1n1u) 21081 | -1/Command | Spotted Executioner 21081 | -1/Command | Spotted Executioner 21081 | -1/Command | Spotted Executioner 21081 | -1/Command | Spotted Executioner 21081 | -1/Command | Spotted Striker 21081 | -1/Command | Spotted Striker 21081 | -1/Command | Spotted Alpha 7 21081 | -1/Command | Spotted Alpha 7 21083 | -1/Command | Spotted B-99 Colossus 21104 | -1/Command | Destroyed Striker 21107 | -1/Command | Spotted B-99 Colossus 21117 | -1/Command | Destroyed Executioner 21117 | -1/Command | Destroyed Executioner 21117 | -1/Command | Destroyed Executioner 21118 | -1/Command | System corruption reached 10% 21160 | -1/Command | Destroyed 8 combat bots 21167 | -1/Command | Core integrity fell below 50% 21181 | -1/Command | Core integrity fell below 20% 21187 | -1/Command | Destroyed by B-99 Colossus with Linear Accelerator Last Messages --------------- 21176_ Slug penetrates Wall. 21177_ Penetrated by Slug. 21177_ Acquired Myomer Leg. 21179_ Penetrated by Slug. 21180_ Acquired 9 matter. 21180_ Penetrated by Slug. 21180_ Myomer Leg destroyed. 21180_ Penetrated by Slug. 21181_ Acquired 9 matter. 21182_ Penetrated by Slug. 21182_ Biometal Leg destroyed. 21182_ Penetrated by Slug. 21183_ Acquired Biometal Leg. 21184_ B-99 Colossus exits siege mode. 21184_ K-01 Serf collects debris. 21185_ Penetrated by Slug. 21185_ Slug penetrates Wall. 21186_ Myomer Leg destroyed. 21186_ Knocked back. 21186_ Penetrated by Slug. Map ----- +----------------------------------------------------+ | ???????????????????????# ## ??????# #?# | | ???????????????????????# ###+###+##### ####### | | ???????????????????????# # | | ???????????########????# # | | ??????????# ????# + | | ??????????# ????# # | | ??????????# ?????# # """ | | ??????????# """?? # ! # """ | | ??????????# """" # # """ | | ??????????# "" # # = | | ??????????# # # | | ????####### ######## | | ????# ## ????????# | | ????# = ## ????????## | | ????# ## ????????# | | ????# ## ????????### | | ????# ###/###"/""????#####;; % ##+### | | ????# # #???## k #????? | | ????# / #??##; [ #????? | | ????# # #### ; % #????? | | ????# / # ;! % % #????? | | ?############/# ;;;;;% % [ *= ;#####????? | | ?# #[ % %[ [%;; #######???? | | ?# # ! % % / #???? | | ?# +% % % ; ####???? | | ?# ! % * @% ; ! #??????? | | ?# % %%==] # #??????? | | ?##########; %[=% ! ] # %! % #??????? | | ????????### !! ; #??????? | | ????????# %% %% ! +% #??????? | | ????????### %7 # "" "" #??????? | | ??????????# BB ! !%;;;##### %""T"" #??????? | | ??????????## BB ! ## """ #??????? | | ???????????## ## #??????? | | ????????#???## ! !!! ## #??????? | | # # # # ### ;BB % !! ###############??????? | | "";BB ; !! #????????????????????? | | / # #????????????????????? | | / # #????????????????????? | | ^ ^/ # #????????????????????? | | ^^/ # #????????????????????? | | ##" ##########????????????????????? | | # # # # ##?## #?????????????????????????????? | | ????#?#?##????# #?????????????????????????????? | | ??????????????# #?????????????????????????????? | | ??????????????#" #?????????????????????????????? | | ??????????????#%" #?????????????????????????????? | | ??????????????#" #?????????????????????????????? | | ??????????????? #?????????????????????????????? | | ??????????????? #?????????????????????????????? | +----------------------------------------------------+ Best States ------------- Heat Dissipation 149 Coolant Potential 100 Energy Generation 99 Energy Capacity 1075 Matter Stores 300 Matter Capacity 300 Sight Range 23 Robot Scan Range 18 Terrain Scan Range 20 Terrain Scan Density 210 Power Amplification 30 Armor Coverage 1500 Resistance: KI 30 Resistance: TH 10 Resistance: EM 30 Core Shielding 40 Propulsion Shielding 66 Point Defense Rating 240 Weapon Cycling 20 Melee Speed Boost 20 Phase Shifting 15 Evasion (%) 85 Targeting Accuracy 28 Melee Accuracy 8 Target Analysis 8 Armor Integrity Analysis 40 Recoil Reduction 2 Energy Filtering 30 Particle Charging 30 Salvage Targeting 5 Offensive Hacking 38 Defensive Hacking 25 Authchip Count 2 Item Schematics ----------------- Hcp. Storage Unit | -10/Materials | Hacked Hacking Suite | -8/Materials | Scanalyzed Imp. Propulsion Shielding | -8/Materials | Extracted Recoil Stabilizer | -8/Materials | Extracted Lgt. Deuterium Engine | -8/Materials | Extracted Heat Sink | -8/Materials | Extracted EM Shotgun | -8/Materials | Extracted Minigun | -8/Materials | Extracted Flak Cannon | -8/Materials | Extracted Imp. VTOL Module | -8/Materials | Extracted Imp. Signal Interpreter | -8/Materials | Extracted Disposable Heat Sink | -8/Materials | Extracted Falx | -7/Factory | Hacked Imp. Cesium-ion Thruster | -7/Factory | Scanalyzed Imp. Hacking Suite | -7/Factory | Hacked Reactive Plating | -7/Factory | Extracted Cld. Aerolev Unit | -6/Factory | Hacked Imp. System Shield | -6/Factory | Hacked Adv. Hacking Suite | -6/Factory | Hacked Imp. Thunder Leg | -6/Factory | Downloaded Hvy. Reflective Plating | -6/Factory | Hacked Lgt. Fission Core | -6/Factory | Hacked Assault Drone Bay | -5/Zhirov | Free Exp. Heat Sink | -5/Zhirov | Free Imp. Arc Thrower | -5/Zhirov | Free Exp. Optical Array | -5/Zhirov | Free Centrium Medium Armor Plating | -3/Research | Scanalyzed Hvy. Shield Leg | -3/Armory | Hacked Centrium Leg | -2/Research | Hacked Robot Schematics ------------------ None Fabricated ------------ Imp. VTOL Module | x1 | -7/Factory | Authchip Imp. VTOL Module | x1 | -7/Factory | Authchip Imp. Hacking Suite | x1 | -7/Factory | Authchip Imp. Cesium-ion Thruster | x1 | -7/Factory | Authchip Lgt. Fission Core | x2 | -7/Factory | Preloaded Imp. Hacking Suite | x1 | -7/Factory | Authchip Adv. Hacking Suite | x1 | -6/Factory | Authchip Imp. Thunder Leg | x2 | -5/Factory | Authchip Imp. Thunder Leg | x2 | -4/Factory | Authchip Imp. Thunder Leg | x2 | -3/Research | Authchip Imp. Thunder Leg | x2 | -3/Research Assault Drone Bay | x1 | -3/Armory | Authchip Hvy. Shield Leg | x1 | -3/Armory Hvy. Shield Leg | x1 | -3/Armory Repaired ---------- Adv. Heat Sink | 38% | -7/Factory Lgt. Antimatter Reactor | 14% | -7/Factory | Broken Imp. Cesium-ion Thruster | 43% | -7/Factory Imp. VTOL Module | 50% | -7/Factory Xenon Bombardment Thruster | 23% | -6/Factory Power Sword | 66% | -5/Factory Adv. KE Penetrator | 16% | -3/Armory Centrium Heavy Armor Plating | 56% | -2/Research Adv. Force Field | 31% | -2/Research Studied --------- Great Maul | -8/Materials | Hacked Grenade Launcher | -8/Materials | Hacked Carbon-fiber Leg | -8/Materials | Hacked Lgt. Nuclear Core | -7/Factory | Hacked Hvy. Rocket Launcher | -7/Factory | Hacked Lgt. Fission Core | -7/Factory | Hacked Xenon Bombardment Thruster | -7/Factory | Hacked Power Sword | -6/Factory | Hacked Imp. VSS Leg | -6/Factory | Hacked Hvy. Phase Cannon | -4/Factory | Hacked Imp. Thunder Leg | -3/Research | Hacked Gamma Bomb Array | -3/Research | Hacked Enh. Nova Cannon | -2/Testing | Hacked Quantum Reactor | -1/Access | Hacked Alien Tech Used ----------------- Integrated Reactor Transdimensional Reconstructor Core Expander Integrated Dissipator Achievements -------------- Fitting Room Left-hand Path Production Line Tailor-made Challenges ------------ None Game ------ Seed ShrapnelBeamMapper Manual? 0 Play Time 08:41:28 Cumulative 197.7 hours Start 2025.11.09 @ 14:06:08 End 2025.11.10 @ 19:44:11 Sessions 21 Manual Loads 0 Difficulty Rogue Special Mode None Game No. 87 Rogue 82 Adventurer 5 Explorer 0 Win Type - Total 5 Types 3/0/0/1/0/0/0/0/0/1 Lore% 63 Gallery% 66 Achievement% 49 Wizard Run 0 Options --------- Layout 1 ASCII 0 Keyboard 0 Movement Numpad Keybinds 0 Fullscreen 1 Font 24/Smallcaps Map View 50x35 Zoom Use 0% Tactical HUD 1 Map Filters NONE Filters NONE Steam 1 RUN: 39f4b334-b66c-4b8e-be80-7e6833a8f35b